[Event "Superbet Rapid Poland 2022"]
[Site "Warsaw"]
[Date "2022.05.20"]
[Round "4.2"]
[White "Rapport, Richard"]
[Black "Gavrilescu, David"]
[Result "1-0"]
[ECO "C00"]
[WhiteElo "2776"]
[BlackElo "2518"]
[Annotator "TA"]
[PlyCount "99"]
[EventDate "2022.05.19"]
[EventType "tourn"]
[EventCountry "POL"]
[SourceTitle "playchess.com"]
[Source "ChessBase"]
[SourceQuality "1"]
[TimeControl "1500+10"]

{[%evp 14,99,0,-18,-20,-17,-12,-27,-35,-39,-30,-35,0,-13,-15,-17,-17,-10,-7,-28,52,51,53,53,52,9,0,-3,-3,-8,10,-2,39,44,47,49,66,37,68,85,127,100,105,90,100,87,238,216,238,225,216,207,503,141,129,152,139,146,110,123,469,487,435,405,471,487,475,479,851,466,2569,2085,29976,29975,29986,29985,29984,29985,29989,29990,29993,29994,29994,29995,29995,29996,29998,29998]} 1. e4 {[%emt 0:00:18]} e6 {[%emt 0:00:09]} 2. d3 {[%emt 0:00:02]} d5 {[%emt 0:00:04]} 3. Nd2 {[%emt 0:00:03]} c5 {[%emt 0:00:13]} 4. g3 {[%emt 0:00:05]} Nc6 {[%emt 0:00:07]} 5. Bg2 {[%emt 0:00:03]} Nf6 {[%emt 0:00:11]} 6. Ngf3 {[%emt 0:00:05]} Be7 {[%emt 0:00:06]} 7. O-O {[%emt 0:00:05]} O-O {[%emt 0:00:23]} 8. a4 {[%emt 0:00:13]} Qc7 {[%emt 0:03:13] C00: French: Unusual White 2nd moves.} 9. Re1 {[%emt 0:00:02]} h6 {[%emt 0:01:36]} 10. e5 {[%emt 0:01:12]} Nd7 {[%emt 0:00:25] Black has an edge.} 11. Qe2 {[%emt 0:00:03]} b6 {[%emt 0:00:46]} 12. h4 {[%emt 0:00:15]} Nb4 {[%emt 0:01:35]} 13. Nf1 {[%emt 0:00:50][%cal Bd2f1,Bf1h2,Bh2g4,Bg4e3][%mdl 32]} Ba6 {[%emt 0:00:07] [#]} 14. Qd1 $146 {[%emt 0:00:23]} ({Predecessor:} 14. Bf4 c4 15. dxc4 Bxc4 16. Qd2 Bxf1 17. Bxf1 Qxc2 18. Rec1 Qxd2 19. Bxd2 a5 20. Rc7 Nxe5 21. Nxe5 {0-1 (32) Slavin,P (1078)-Henke,S (1526) LSS email 2010}) 14... Rfc8 {[%emt 0:01:26]} 15. N1h2 {[%emt 0:00:24]} Qd8 {[%emt 0:00:31]} 16. Bf4 {[%emt 0:00:43]} b5 {[%emt 0:01:03]} (16... Kh8 $11) 17. c3 $14 {[%emt 0:00:40]} Nc6 {[%emt 0:00:11]} 18. axb5 {[%emt 0:00:01]} Bxb5 {[%emt 0:00:03]} 19. Ng4 {[%emt 0:00:20]} (19. b3 $5 {[%cal Rc3c4]}) 19... Bf8 $1 {[%emt 0:00:16]} 20. Qe2 {[%emt 0:01:45] Hoping for c4.} Ne7 {[%emt 0:01:40]} 21. h5 {[%emt 0:00:23]} a5 {[%emt 0:01:31]} 22. Ne3 {[%emt 0:00:30]} Qb6 {[%emt 0:02:33]} 23. g4 {[%emt 0:00:11][%cal Bg3g4,Bg4g5][%mdl 32]} d4 {[%emt 0:01:21]} 24. Nc4 {[%emt 0:00:48]} Bxc4 {[%emt 0:00:03]} 25. dxc4 {[%emt 0:00:02]} Rab8 {[%emt 0:00:42]} 26. Bc1 {[%emt 0:00:04]} Qa6 {[%emt 0:01:10]} 27. g5 {[%emt 0:01:55]} (27. cxd4 $6 cxd4 28. Nxd4 Qxc4 29. Qxc4 Rxc4 $11) 27... dxc3 {[%emt 0:01:39]} 28. bxc3 {[%emt 0:00:10]} Nb6 {[%emt 0:00:07]} 29. gxh6 {[%emt 0:01:30] White is more active.} Qxc4 $2 {[%emt 0:01:19]} (29... gxh6 $16 30. Bf1 Nf5) 30. hxg7 $18 {[%emt 0:01:17]} (30. Rxa5 gxh6 31. Qxc4 Nxc4 $11) 30... Bxg7 {[%emt 0:00:02]} 31. Qc2 {[%emt 0:00:12] Threatens to win with Re4.} (31. Rxa5 $6 Nf5 $16) 31... Nbd5 {[%emt 0:01:29]} 32. h6 {[%emt 0:01:16]} (32. Rxa5 Nf5 $14) 32... Bh8 $2 {[%emt 0:00:06]} (32... Qxc3 33. Qxc3 Nxc3) 33. Re4 $2 {[%emt 0:02:54]} (33. Ra4 $18 {is more deadly.} Rb4 34. Ra3) 33... Qxc3 $16 {[%emt 0:00:11]} 34. Rg4+ {[%emt 0:00:07]} Kf8 {[%emt 0:00:41] [#]} 35. Qh7 {[%emt 0:00:04]} Ke8 {[%emt 0:00:36]} 36. Rga4 $36 {[%emt 0:01:01][%cal Bg4a4,Ba4a5,Ba5a8][%mdl 2080] White is really pushing. Dancing on a razor blade.} ({Wrong is} 36. Qxh8+ $2 Kd7 37. Qxc8+ Rxc8 $19) 36... Kd7 $2 {[%emt 0:01:34][%mdl 8192]} (36... Bxe5 $16 {is a better chance.} 37. R4a3 Qxa1 38. Rxa1 Bxa1) 37. Bd2 $18 {[%emt 0:00:40][%mdl 64] Skewer. This bishop pair is nice.} Qb2 {[%emt 0:00:20]} 38. Rxa5 {[%emt 0:00:05]} Bxe5 {[%emt 0:01:19]} 39. Nxe5+ {[%emt 0:00:38]} Qxe5 {[%emt 0:00:02]} 40. Qxf7 {[%emt 0:00:05] Ra7+ is the strong threat.} ({Weaker is} 40. Ra7+ Rc7 41. Qxf7 Qf5 42. Qxf5 exf5 $18) 40... Rc7 {[%emt 0:00:28]} (40... Qf5 $142 41. Ra7+ Rc7 42. Qxf5 exf5) 41. h7 {[%emt 0:00:31]} Rh8 {[%emt 0:00:17]} (41... Qf6 $142 42. Qxf6 Nxf6) 42. Ra8 {[%emt 0:00:42] And now R1a6 would win.} Rcc8 {[%emt 0:00:16]} 43. R1a7+ {[%emt 0:00:48] White mates.} Kd6 {[%emt 0:00:02]} 44. Bxd5 {[%emt 0:01:24]} Kxd5 {[%emt 0:00:07]} 45. Rxc8 {[%emt 0:01:02]} Nxc8 {[%emt 0:00:15]} 46. Qb7+ {[%emt 0:00:04]} Kc4 {[%emt 0:00:21]} 47. Ra4+ {[%emt 0:00:13]} Kd3 {[%emt 0:00:01]} 48. Qb3+ {[%emt 0:01:05]} Ke2 {[%emt 0:00:14]} 49. Ra2 {[%emt 0:00:25]} Qd5 {[%emt 0:00:11]} 50. Ba5+ {[%emt 0:00:21] Weighted Error Value: White=0.29 (precise) /Black=0.50} 1-0

[Event "Superbet Rapid Poland 2022"]
[Site "Warsaw"]
[Date "2022.05.20"]
[Round "4.3"]
[White "Wojtaszek, Radoslaw"]
[Black "Duda, Jan-Krzysztof"]
[Result "0-1"]
[ECO "B06"]
[WhiteElo "2696"]
[BlackElo "2750"]
[Annotator "TA"]
[PlyCount "144"]
[EventDate "2022.05.19"]
[EventType "tourn"]
[EventCountry "POL"]
[SourceTitle "playchess.com"]
[Source "ChessBase"]
[SourceQuality "1"]
[TimeControl "1500+10"]

{[%evp 9,144,37,44,45,50,37,51,34,57,24,12,12,10,9,21,10,13,12,10,8,6,4,35,14,14,-24,-21,-22,-1,-10,0,-8,-3,-10,-4,-13,0,0,0,0,0,0,0,0,7,-8,0,-61,-66,-60,-50,-75,-77,-91,-81,-92,-81,-89,0,-85,-83,-95,-35,-28,-25,-23,-12,-53,-53,-53,0,-36,-31,-83,-91,-75,-69,-146,0,0,0,0,0,0,0,-6,-4,-5,0,0,0,-12,-4,-57,-57,-57,-57,-49,0,0,0,-49,-49,-49,-49,-50,-37,-47,-18,-16,0,0,0,-81,0,0,0,0,0,0,0,0,0,0,0,0,0,-102,-102,-188,-178,-767,-563,-5708,-4802,-1728,-1010]} 1. d4 {[%emt 0:00:01]} g6 {[%emt 0:00:02]} 2. e4 {[%emt 0:00:13]} Bg7 {[%emt 0:00:03]} 3. Nf3 {[%emt 0:00:04]} d6 {[%emt 0:00:32]} 4. Bc4 {[%emt 0:00:03]} e6 {[%emt 0:02:09]} 5. O-O {[%emt 0:00:23]} Nd7 {[%emt 0:00:33]} 6. Re1 {[%emt 0:00:15] B06: Modern Defence.} a6 {[%emt 0:00:30]} 7. a4 {[%emt 0:00:10]} b6 {[%emt 0:00:06]} 8. Nbd2 {[%emt 0:00:28] White is slightly better.} Bb7 {[%emt 0:00:05]} 9. Nf1 {[%emt 0:00:17] [#]} Ngf6 $146 {[%emt 0:01:18]} ({Predecessor:} 9... Ne7 10. Ng3 O-O 11. h4 d5 12. exd5 Nxd5 13. h5 c5 14. h6 Bh8 15. c3 Qc7 {0-1 (81) Vakhlamov,I (2413)-Chernomordik,P (2177) Chess.com INT 2021}) 10. Bd3 {[%emt 0:05:15]} O-O {[%emt 0:00:18]} 11. Ng3 {[%emt 0:00:03]} c5 {[%emt 0:00:42]} 12. c3 {[%emt 0:00:03]} Qc7 {[%emt 0:02:07]} 13. Qe2 {[%emt 0:00:03]} Rfc8 {[%emt 0:01:35]} 14. Bd2 {[%emt 0:01:39]} c4 {[%emt 0:01:10]} 15. Bc2 {[%emt 0:00:03]} b5 {[%emt 0:00:02]} 16. Ra2 {[%emt 0:03:51]} Nb6 {[%emt 0:01:56]} 17. e5 {[%emt 0:05:22]} dxe5 {[%emt 0:04:38]} 18. Nxe5 {[%emt 0:00:02]} Bd5 {[%emt 0:00:13]} ({Don't do} 18... Nxa4 19. Bxa4 bxa4 20. Rxa4 $14) 19. a5 {[%emt 0:02:18]} Nbd7 {[%emt 0:00:21]} 20. Bf4 $132 {[%emt 0:00:02][%cal Oe5g6][%mdl 2048] White is not keeping still} Qb7 {[%emt 0:00:34]} 21. f3 {[%emt 0:00:02]} Nxe5 {[%emt 0:01:38]} 22. Bxe5 {[%emt 0:00:02]} Qe7 {[%emt 0:01:32]} 23. Ne4 {[%emt 0:00:56]} Rd8 {[%emt 0:01:45]} 24. Qd2 {[%emt 0:01:16]} Ra7 {[%emt 0:00:44]} 25. Raa1 {[%emt 0:00:24]} Nh5 {[%emt 0:01:40] And now ...Bxe5 would win.} 26. Bxg7 {[%emt 0:01:41]} Kxg7 {[%emt 0:00:02]} 27. Qe3 {[%emt 0:00:19]} Bxe4 {[%emt 0:00:57]} 28. Qxe4 {[%emt 0:02:28]} (28. fxe4 $11 e5 29. d5) 28... Nf6 $15 {[%emt 0:00:15]} 29. Qe5 {[%emt 0:00:09]} Rd5 {[%emt 0:00:37]} 30. Qf4 {[%emt 0:00:11]} b4 $1 {[%emt 0:01:15]} 31. Bd1 {[%emt 0:00:14]} Rb5 {[%emt 0:00:19]} 32. Be2 {[%emt 0:00:48]} Nd5 {[%emt 0:00:08][%csl LRc3,LRf4]} 33. Qe5+ {[%emt 0:00:03]} Nf6 {[%emt 0:00:21]} 34. Qf4 {[%emt 0:00:18]} bxc3 {[%emt 0:00:28]} 35. bxc3 {[%emt 0:00:17]} Rb3 {[%emt 0:00:06]} (35... Nd5 $17 36. Qe5+ f6) 36. Qd2 {[%emt 0:00:20]} Rc7 {[%emt 0:00:17]} 37. Ra4 {[%emt 0:00:04]} Ra3 {[%emt 0:00:07]} 38. Ra1 {[%emt 0:00:58]} Rxa1+ {[%emt 0:00:02]} 39. Rxa1 {[%emt 0:00:01]} e5 {[%emt 0:00:16]} (39... Qd7 $15) 40. Qe3 {[%emt 0:00:23]} Nd5 {[%emt 0:00:14]} 41. Qxe5+ {[%emt 0:00:05]} (41. Qd2 $15) 41... Qxe5 $17 {[%emt 0:00:02]} 42. dxe5 {[%emt 0:00:01]} Nxc3 $15 {[%emt 0:00:11][%mdl 4096] Endgame KRB-KRN} 43. Bf1 {[%emt 0:00:05]} ({White should play} 43. Kf2 $15) 43... Nb5 {[%emt 0:00:11] Black is more active.} (43... Nd5 $17 {White must now prevent ...c3.} 44. Rc1 c3) 44. Kf2 $11 {[%emt 0:00:10]} Rc5 {[%emt 0:00:15]} 45. f4 {[%emt 0:00:23]} Nd4 {[%emt 0:00:02]} 46. Rc1 {[%emt 0:00:15]} ({Wrong is} 46. Ra4 $2 c3 $1 47. Bd3 (47. Rxd4 $2 c2 $19) 47... c2 48. Bxc2 Rxc2+ $19) 46... c3 {[%emt 0:00:01]} 47. Bxa6 {[%emt 0:00:05]} Nb3 {[%emt 0:00:24]} 48. Rc2 {[%emt 0:00:02]} Nd4 {[%emt 0:00:12]} 49. Rc1 {[%emt 0:00:01]} Nb3 {[%emt 0:00:12]} 50. Rc2 {[%emt 0:00:01]} Nxa5 {[%emt 0:00:01][%cal Bb3a5,Ba5c6,Bc6b4,Bb4a2][%mdl 32]} 51. Ke3 {[%emt 0:00:42]} (51. Bd3 $11) 51... Nc6 $1 $15 {[%emt 0:00:02][%cal Og6g5]} 52. Rc1 {[%emt 0:00:11]} Nb4 {[%emt 0:00:12]} 53. Bd3 {[%emt 0:00:02]} Na2 {[%emt 0:00:22]} (53... c2 $5 {[%cal Rc5c3]} 54. Be4 Rc4 $15) 54. Rc2 {[%emt 0:00:01]} Nb4 {[%emt 0:00:01]} 55. Rc1 {[%emt 0:00:00]} c2 {[%emt 0:00:05] aiming for ...Rc3.} 56. Be4 $1 {[%emt 0:00:06]} Rc4 {[%emt 0:00:11]} 57. g4 {[%emt 0:00:35]} Kf8 {[%emt 0:00:25]} 58. h4 {[%emt 0:00:12]} Ke7 {[%emt 0:00:09]} 59. f5 {[%emt 0:00:06]} gxf5 {[%emt 0:00:10]} 60. Bxf5 {[%emt 0:00:02]} h6 {[%emt 0:00:09]} 61. h5 {[%emt 0:00:32]} (61. g5 $11 {remains equal.}) 61... f6 {[%emt 0:00:14]} ({Better is} 61... Rc5 $17 62. Kf4 Kf8) 62. e6 $11 {[%emt 0:00:10]} Kd6 {[%emt 0:00:08]} 63. Kd2 {[%emt 0:00:06]} Rf4 {[%emt 0:00:07]} 64. Ke3 {[%emt 0:00:05] Against Rf2} Rc4 {[%emt 0:00:14]} 65. Kd2 {[%emt 0:00:01]} Rf4 {[%emt 0:00:07]} 66. Ke3 {[%emt 0:00:01] Inhibits Rf2.} Nd5+ {[%emt 0:00:14]} 67. Kd3 {[%emt 0:00:13]} Rf2 {[%emt 0:00:07]} 68. Kd4 {[%emt 0:00:14]} (68. Kc4 $11) 68... Rd2+ $17 {[%emt 0:00:09]} 69. Ke4 {[%emt 0:00:31] [#]} (69. Kc4 $17 {was worth a try.}) 69... Nb4 $1 $19 {[%emt 0:00:07] Threatens to win with ...Rd1.} 70. g5 $2 {[%emt 0:00:12]} (70. Kf3) 70... fxg5 {[%emt 0:00:03] Hoping for ...Rd1. Black is clearly winning.} 71. Bg4 {[%emt 0:00:08] Inhibits Rd1.} Na2 {[%emt 0:00:09]} 72. Ke3 {[%emt 0:00:06]} Rg2 {[%emt 0:00:08] Weighted Error Value: White=0.11 (very precise) /Black=0.10 (very precise)} 0-1

[Event "Superbet Rapid Poland 2022"]
[Site "Warsaw"]
[Date "2022.05.20"]
[Round "4.4"]
[White "So, Wesley"]
[Black "Aronian, Levon"]
[Result "1/2-1/2"]
[ECO "E04"]
[WhiteElo "2766"]
[BlackElo "2765"]
[Annotator "TA"]
[PlyCount "155"]
[EventDate "2022.05.19"]
[EventType "tourn"]
[EventCountry "POL"]
[SourceTitle "playchess.com"]
[Source "ChessBase"]
[SourceQuality "1"]
[TimeControl "1500+10"]

{[%evp 23,155,22,16,15,13,26,15,19,20,22,18,31,23,27,27,28,30,18,22,18,16,20,14,14,18,13,16,0,0,9,8,0,0,0,0,0,0,0,7,0,0,0,0,0,0,0,0,0,0,0,4,0,2,0,7,-20,-13,-5,0,0,0,0,0,0,4,8,8,6,264,136,380,366,410,171,163,0,366,260,220,86,81,95,80,80,992,863,945,781,545,159,227,211,348,356,511,313,200,200,342,200,856,592,347,115,115,115,697,8,8,8,8,0,0,0,0,0,0,0,0,0,0,0,0,0,0,0,0,0,0,0,0,0,0,0]} 1. Nf3 {[%emt 0:00:04]} d5 {[%emt 0:00:03]} 2. g3 {[%emt 0:00:02]} c5 {[%emt 0:00:26]} 3. Bg2 {[%emt 0:00:02]} Nc6 {[%emt 0:00:06]} 4. d4 {[%emt 0:00:03]} Nf6 {[%emt 0:00:06]} 5. O-O {[%emt 0:00:03]} e6 {[%emt 0:00:03]} 6. c4 {[%emt 0:00:06]} dxc4 {[%emt 0:00:02]} 7. dxc5 {[%emt 0:00:04]} Qxd1 {[%emt 0:00:04]} 8. Rxd1 {[%emt 0:00:03]} Bxc5 {[%emt 0:00:03]} 9. Nbd2 {[%emt 0:00:03]} c3 {[%emt 0:00:07]} 10. bxc3 {[%emt 0:00:03]} O-O {[%emt 0:00:03]} 11. Nb3 {[%emt 0:00:03]} Be7 {[%emt 0:00:04]} 12. c4 {[%emt 0:00:02]} Bd7 {[%emt 0:00:04]} 13. Bb2 {[%emt 0:00:02] E04: Open Catalan: 5 Nf3.} Rfd8 {[%emt 0:00:03]} 14. Nfd4 {[%emt 0:00:05]} Rac8 {[%emt 0:00:24]} 15. Nb5 {[%emt 0:00:05]} b6 {[%emt 0:00:05]} 16. Nd6 {[%emt 0:00:02]} Rc7 {[%emt 0:00:31]} 17. Ba3 {[%emt 0:00:56]} Ne5 {[%emt 0:00:06]} 18. Nb5 {[%emt 0:00:03]} Bxb5 {[%emt 0:00:04]} 19. Rxd8+ {[%emt 0:00:06]} Bxd8 {[%emt 0:00:03]} 20. cxb5 {[%emt 0:00:01] Threatens to win with Bd6.} Nc4 {[%emt 0:00:54] Inhibits Bd6.} 21. Bb4 {[%emt 0:01:44]} Be7 {[%emt 0:01:17]} 22. Bxe7 {[%emt 0:00:04]} Rxe7 {[%emt 0:00:03]} 23. Rc1 {[%emt 0:00:01]} Nd6 {[%emt 0:00:16]} 24. Nd4 {[%emt 0:01:52]} g5 {[%emt 0:00:02]} 25. Nc6 {[%emt 0:00:22]} Rc7 {[%emt 0:00:20]} 26. a4 {[%emt 0:00:08]} Kg7 {[%emt 0:00:17] [#]} 27. e3 $146 {[%emt 0:01:05]} ({Predecessor:} 27. Rd1 Nb7 28. h3 Nc5 29. Rd4 Rd7 30. Rc4 Ne8 31. Kh2 h6 32. a5 Nd6 33. Rc1 Nxb5 34. Nxa7 Rxa7 35. axb6 Ra6 36. Rxc5 {½-½ (38) Boruchovsky,A (2531)-Vetoshko,V (2430) Pardubice 2016}) 27... Nb7 {[%emt 0:00:51]} 28. Kf1 {[%emt 0:02:14]} Na5 {[%emt 0:01:23]} 29. Ke2 {[%emt 0:02:50]} Nd7 {[%emt 0:00:03]} 30. f4 {[%emt 0:02:10]} h6 {[%emt 0:00:23]} 31. h4 {[%emt 0:00:25]} gxh4 {[%emt 0:00:03]} 32. gxh4 {[%emt 0:00:02]} Kf8 {[%emt 0:00:39]} 33. Rd1 {[%emt 0:02:01]} Kg7 {[%emt 0:00:32]} 34. Rd4 {[%emt 0:01:40]} Nb3 {[%emt 0:01:04] Pair of Knights!} 35. Rc4 {[%emt 0:00:27]} Ndc5 {[%emt 0:01:14]} 36. Ne5 {[%emt 0:01:26]} f6 {[%emt 0:00:46]} 37. Nc6 {[%emt 0:00:10]} Rd7 {[%emt 0:00:17]} 38. Nd4 {[%emt 0:00:03]} Na5 {[%emt 0:01:11]} 39. Rxc5 {[%emt 0:02:59]} bxc5 {[%emt 0:00:02]} 40. Nxe6+ $11 {[%emt 0:00:01][%mdl 4096] Endgame KRN-KBN} Kf7 {[%emt 0:00:52]} 41. Nxc5 {[%emt 0:00:02]} Rc7 {[%emt 0:00:07]} 42. Bd5+ {[%emt 0:00:03]} Ke7 {[%emt 0:00:19]} 43. Ne6 {[%emt 0:01:10]} Rc2+ {[%emt 0:07:07]} 44. Kd3 {[%emt 0:00:07]} Rc1 {[%emt 0:03:05]} 45. Nd4 {[%emt 0:00:08] next Nf5+ is good for White.} Kf8 $2 {[%emt 0:00:55][%mdl 8192]} (45... Kd6 $11 {and Black has nothing to worry.} 46. Bf7 Ke7) 46. Ke4 {[%emt 0:02:15]} (46. h5 $18) 46... Rc3 $2 {[%emt 0:00:02]} (46... Ke8 $16) 47. h5 $18 {[%emt 0:01:00]} Kg7 {[%emt 0:01:18]} 48. Ne6+ {[%emt 0:00:47]} (48. Nf5+ $142 Kh7 49. Bf7) 48... Kf7 {[%emt 0:00:48][%cal Of6f5]} 49. Nd4+ {[%emt 0:00:04]} (49. Kd4 Rc1 50. Ke4) 49... Kg7 {[%emt 0:00:01]} 50. Nc6 {[%emt 0:01:09]} Nb7 {[%emt 0:03:14]} 51. Nxa7 {[%emt 0:00:05]} (51. Kd4 $18 Ra3 52. a5) 51... Nc5+ $16 {[%emt 0:00:13]} 52. Kd4 {[%emt 0:00:02]} Nxa4 {[%emt 0:00:01]} 53. b6 {[%emt 0:00:03][%cal Bb5b6,Bb6b7][%mdl 32]} Rc1 $2 {[%emt 0:01:22][%mdl 8192]} (53... Nxb6 $16 54. Kxc3 Nxd5+ 55. Kd4 Nc7) 54. b7 $18 {[%emt 0:00:03]} Rd1+ {[%emt 0:00:02]} 55. Kc4 $1 {[%emt 0:00:28]} Rc1+ {[%emt 0:00:01]} 56. Kb4 $2 {[%emt 0:00:44]} (56. Kb5 $18 {has better winning chances.} Nc5 57. b8=Q Rb1+ 58. Kxc5 Rxb8 59. Nb5) 56... Nc5 $16 {[%emt 0:00:07][%cal Oc5b7]} 57. Nb5 {[%emt 0:00:38]} Nd7 {[%emt 0:00:02]} (57... Na6+ {is a better defense.} 58. Ka5 Nb8) 58. Nd4 $18 {[%emt 0:00:12]} Kf8 {[%emt 0:00:05]} (58... Rb1+ {keeps fighting.} 59. Kc3 Nc5) 59. Nf5 {[%emt 0:00:23]} Rb1+ {[%emt 0:00:33] [#]} 60. Bb3 $1 {[%emt 0:00:19]} Rh1 {[%emt 0:00:02]} (60... Ke8 $142 61. Nxh6 Kd8 62. Nf7+ Kc7) 61. Kb5 {[%emt 0:00:37]} ({Weaker is} 61. Nxh6 Rxh5 62. Nf5 Nb8 $16) (61. Bc2 $142) 61... Rxh5 $2 {[%emt 0:00:34]} (61... Rb1) 62. e4 {[%emt 0:00:02] Hoping for Kc6.} Rh3 {[%emt 0:00:07]} 63. Bc4 $2 {[%emt 0:00:20]} ({Not} 63. Be6 Nb8 $16) (63. Nd4 $18 {Black must now prevent Be6.} Rc3 64. Ba4) 63... Rc3 $16 {[%emt 0:00:13]} 64. Nxh6 {[%emt 0:00:28] White is more active.} Ke7 $2 {[%emt 0:00:01][%mdl 8192]} (64... Nb8 $16 65. Bd5 Nd7) 65. Nf5+ $2 {[%emt 0:00:28]} (65. Ng8+ $18 Kd8 {[#]} 66. Nxf6 $1 {[%mdl 512]}) 65... Kd8 $11 {[%emt 0:00:01] The position is equal.} 66. Be6 {[%emt 0:00:00] And now Nd4 would win.} Nb8 {[%emt 0:00:13]} 67. Bd5 {[%emt 0:00:18]} Kc7 {[%emt 0:00:05]} 68. Nd4 {[%emt 0:00:04]} Rc1 {[%emt 0:00:09]} 69. Ne6+ {[%emt 0:00:18]} Kd6 {[%emt 0:00:02]} 70. Nd4 {[%emt 0:00:51]} Nd7 {[%emt 0:00:18]} 71. Nb3 {[%emt 0:00:00]} Rf1 {[%emt 0:00:28]} 72. f5 {[%emt 0:00:00]} Kc7 {[%emt 0:00:12]} 73. Be6 {[%emt 0:00:00] Bxd7 is the strong threat.} Rb1 {[%emt 0:00:07][%cal Oc7b7]} 74. Bd5 {[%emt 0:00:00]} Rd1 {[%emt 0:00:15]} 75. Be6 {[%emt 0:00:07]} Rb1 {[%emt 0:00:06][%cal Oc7b7]} (75... Kxb7 76. Bxd7 Rxd7 77. Nc5+ Kc8 78. Nxd7 Kxd7 79. Kc4) 76. Bd5 {[%emt 0:00:02]} Rd1 {[%emt 0:00:01]} 77. Be6 {[%emt 0:00:01]} Rb1 {[%emt 0:00:01][%cal Oc7b7]} (77... Kxb7 78. Bxd7 Rxd7 79. Nc5+ Kc8 80. Nxd7 Kxd7 81. Kc4) 78. Bd5 {[%emt 0:01:10] Black defended with fortune.  Weighted Error Value: White=0.39/Black=0.26 (precise)} 1/2-1/2

[Event "Superbet Rapid Poland 2022"]
[Site "Warsaw"]
[Date "2022.05.20"]
[Round "4.5"]
[White "Anand, Viswanathan"]
[Black "Shevchenko, Kirill"]
[Result "1-0"]
[ECO "B33"]
[WhiteElo "2751"]
[BlackElo "2644"]
[Annotator "TA"]
[PlyCount "75"]
[EventDate "2022.05.19"]
[EventType "tourn"]
[EventCountry "POL"]
[SourceTitle "playchess.com"]
[Source "ChessBase"]
[SourceQuality "1"]
[TimeControl "1500+10"]

{[%evp 23,75,29,45,36,44,47,53,38,71,20,107,105,126,134,162,102,170,167,170,118,153,112,106,94,97,90,214,219,225,214,227,223,211,201,227,233,210,135,231,185,820,808,795,802,785,762,879,895,864,847,1715,1685,29982,900]} 1. e4 {[%emt 0:00:02]} c5 {[%emt 0:00:01]} 2. Nf3 {[%emt 0:00:02]} Nc6 {[%emt 0:00:02]} 3. d4 {[%emt 0:00:09]} cxd4 {[%emt 0:00:03]} 4. Nxd4 {[%emt 0:00:02]} Nf6 {[%emt 0:00:02]} 5. Nc3 {[%emt 0:00:03]} e5 {[%emt 0:00:13]} 6. Ndb5 {[%emt 0:00:03]} d6 {[%emt 0:00:02]} 7. Bg5 {[%emt 0:00:12]} a6 {[%emt 0:00:02]} 8. Na3 {[%emt 0:00:01]} b5 {[%emt 0:00:02]} 9. Nd5 {[%emt 0:00:10]} Be7 {[%emt 0:00:05]} 10. Bxf6 {[%emt 0:00:08]} Bxf6 {[%emt 0:00:02]} 11. c3 {[%emt 0:00:05]} O-O {[%emt 0:03:15]} 12. Nc2 {[%emt 0:00:06]} Be6 {[%emt 0:00:07]} 13. h4 {[%emt 0:03:54] B33: Sicilian: Pelikan and Sveshnikov Variations.} Bxd5 {[%emt 0:05:00]} 14. Qxd5 {[%emt 0:00:12]} Ne7 {[%emt 0:00:21]} 15. Qd3 {[%emt 0:00:09] White is slightly better.} d5 {[%emt 0:00:25]} 16. exd5 $5 {[%emt 0:01:04][%mdl 4] [#] An interesting side line.} (16. O-O-O $16) 16... e4 $146 {[%emt 0:01:57]} (16... Qxd5 $11 17. Qxd5 Nxd5) ({Predecessor:} 16... Qxd5 17. Qxd5 Nxd5 18. O-O-O Nb6 19. g3 Rad8 20. Bg2 Nc4 21. Nb4 a5 22. Nc6 Rxd1+ 23. Rxd1 {1-0 (38) Jakubowski,K (2481)-Easton,J (2175) Chess.com INT 2020}) 17. Qxe4 $16 {[%emt 0:00:52]} Re8 {[%emt 0:03:33]} 18. O-O-O {[%emt 0:00:19]} Qb6 {[%emt 0:00:09]} 19. d6 {[%emt 0:04:48]} (19. Bd3 $18 Ng6 20. Qf5) 19... Nc6 {[%emt 0:01:46]} (19... Ng6 $16 20. Qb4 (20. Qf5 Re5 $16) 20... Qxf2) 20. Qf5 $18 {[%emt 0:00:47] aiming for Bd3.} Re5 {[%emt 0:01:44]} 21. Qf4 {[%emt 0:00:59]} (21. Qf3 $18 {Threatens to win with Nb4.} Rf8 22. g4) 21... Rd8 {[%emt 0:03:40]} 22. Ne3 {[%emt 0:02:30]} b4 {[%emt 0:01:45]} 23. Nc4 {[%emt 0:00:22][%csl LRb6,LRe5]} Qb7 {[%emt 0:01:47][%cal Ob4c3] ...bxc3! is the strong threat.} 24. cxb4 {[%emt 0:01:56]} (24. Nxe5 Bxe5 25. Qc4 bxc3 26. bxc3 (26. b3 Qb6 $14) 26... Bxd6 $18) 24... Rb5 {[%emt 0:02:26] This move loses the game for Black.} (24... Qxb4 $16 25. Qd2 Qxd2+ 26. Rxd2 (26. Nxd2 Rd5 $16) (26. Kxd2 Rd5+ 27. Kc1 Rxd1+ 28. Kxd1 Ne5 $16) 26... Re1+ 27. Rd1 Rxd1+ 28. Kxd1 Ne5) 25. a3 {[%emt 0:01:07][%cal Ba2a3,Ba3a4][%mdl 32] Strongly threatening Ne3.} a5 {[%emt 0:00:32]} 26. Rh3 {[%emt 0:00:57]} (26. Ne3 Rc5+ 27. Kb1 axb4 $14) 26... axb4 {[%emt 0:00:06] [#]} 27. a4 {[%emt 0:00:02]} Rc5 {[%emt 0:00:04]} 28. Kb1 {[%emt 0:00:32]} b3 {[%emt 0:00:10]} 29. Qe3 {[%emt 0:00:33]} Qa7 {[%emt 0:00:01]} 30. d7 {[%emt 0:02:36] Threatening mate with Qe8+.} ({But not} 30. Qxb3 Rf5 31. Qa3 Rxf2) 30... g6 {[%emt 0:00:31]} (30... Be7 $16 {was worth a try.}) 31. h5 {[%emt 0:00:41] White threatens Qe8+ and mate.} Ne5 $2 {[%emt 0:00:10]} (31... Be7 32. hxg6 (32. Qxb3 Rxd7 33. hxg6 hxg6 $16) 32... hxg6) 32. Nxe5 {[%emt 0:00:41]} Bxe5 {[%emt 0:00:02]} 33. Bb5 {[%emt 0:00:23]} Qc7 {[%emt 0:00:24]} 34. Qxb3 {[%emt 0:00:22]} Bf6 {[%emt 0:00:07]} 35. Rf3 {[%emt 0:00:33]} Qe5 {[%emt 0:00:03]} 36. Qb4 {[%emt 0:00:23]} Bg7 {[%emt 0:00:20]} 37. Re1 {[%emt 0:00:08]} Rxb5 {[%emt 0:00:08]} 38. Rxe5 {[%emt 0:03:37] Weighted Error Value: White=0.22 (precise) /Black=0.70} (38. axb5 $142 Qb8 39. Qe7 Rf8 {[#]} 40. Rxf7 $3 {[%mdl 512]} Rxf7 41. d8=Q+ Qxd8 42. Qxd8+ Rf8 43. Re8) 1-0